fUST/lending_fUST_20260107
["ID","MTS","AMOUNT","RATE_DAILY","PERIOD"]
[400569238,1767727839652,-1000.0,0.0002295,10]
[400569240,1767727839662,-492.0,0.0002295,10]
[400569243,1767727839671,-216.99633361,0.00022979,25]
[400569246,1767727839680,-263.90236536,0.00022979,25]
[400569248,1767727839690,-2827.11,0.00023,14]
[400569250,1767727839699,-24466.81,0.00023,2]
[400569252,1767727839708,-2000.0,0.00023,7]
[400569254,1767727839718,-450.0,0.00023014,2]
[400569256,1767727839727,-216.99633361,0.00023115,32]
[400569258,1767727839736,-263.90236536,0.00023115,32]
[400569260,1767727839745,-2200.0,0.00023144,2]
[400569262,1767727839756,-2347.07115484,0.00023171,2]
[400569264,1767727839765,-500.0,0.00023185,2]
[400569266,1767727839775,-216.99633361,0.0002325,40]
[400569268,1767727839784,-263.90236536,0.0002325,40]
[400569270,1767727839794,-500.0,0.00023322,2]
[400569272,1767727839803,-2200.0,0.00023341,2]
[400569274,1767727839813,-2200.0,0.00023386,2]
[400569276,1767727839822,-216.99633361,0.00023386,48]
[400569278,1767727839831,-263.90236536,0.00023386,48]
[400569280,1767727839840,-2200.0,0.00023391,2]
[400569282,1767727839850,-2200.0,0.00023392,2]
[400569284,1767727839859,-2347.07115484,0.00023467,2]
[400569286,1767727839869,-160.0,0.00023477,2]
[400569288,1767727839878,-160.0,0.00023477,2]
[400569290,1767727839888,-152.35382253,0.00023477,2]
[400569292,1767727839897,-151.0,0.00023477,2]
[400569294,1767727839906,-196.9088468,0.00023477,2]
[400569296,1767727839916,-250.0,0.00023477,2]
[400569298,1767727839925,-255.24985543,0.00023477,2]
[400569300,1767727839934,-250.0,0.00023477,2]
[400569302,1767727839943,-500.0,0.00023477,2]
[400569304,1767727839952,-250.0,0.00023477,2]
[400569306,1767727839961,-500.0,0.00023477,2]
[400569308,1767727839971,-151.0,0.00023477,2]
[400569310,1767727839980,-250.0,0.00023477,2]
[400569312,1767727839988,-500.0,0.00023477,2]
[400569314,1767727839998,-250.0,0.00023477,2]
[400569316,1767727840008,-500.0,0.00023477,2]
[400569318,1767727840018,-514.84070869,0.00023477,2]
[400569320,1767727840027,-250.0,0.00023477,2]
[400569322,1767727840036,-500.0,0.00023477,2]
[400569324,1767727840045,-250.0,0.00023477,2]
[400569326,1767727840054,-500.0,0.00023477,2]
[400569328,1767727840063,-250.0,0.00023477,2]
[400569330,1767727840072,-500.0,0.00023477,2]
[400569333,1767727840082,-250.0,0.00023477,2]
[400569336,1767727840091,-151.0,0.00023477,2]
[400569338,1767727840100,-500.0,0.00023477,2]
[400569340,1767727840109,-250.0,0.00023477,2]
[400569342,1767727840118,-2487.15318209,0.00023477,2]
[400569344,1767727840127,-204.04740029,0.00023477,2]
[400569346,1767727840137,-500.0,0.00023477,2]
[400569348,1767727840146,-250.0,0.00023477,2]
[400569350,1767727840154,-500.0,0.00023477,2]
[400569352,1767727840163,-250.0,0.00023477,2]
[400569366,1767727840290,-500.0,0.00023477,2]
[400569368,1767727840300,-329.95937148,0.00023477,2]
[400569371,1767727840310,-500.0,0.00023477,2]
[400569372,1767727840321,-265.97969829,0.00023477,2]
[400569374,1767727840330,-500.0,0.00023477,2]
[400569376,1767727840339,-429.89419342,0.00023477,2]
[400569378,1767727840348,-500.0,0.00023477,2]
[400569380,1767727840357,-187.78006525,0.00023477,2]
[400569382,1767727840366,-500.0,0.00023477,2]
[400569384,1767727840376,-500.0,0.00023477,2]
[400569386,1767727840385,-500.0,0.00023477,2]
[400569388,1767727840394,-500.0,0.00023477,2]
[400569390,1767727840403,-265.0,0.00023477,2]
[400569392,1767727840411,-2030.296672,0.00023477,2]
[400569394,1767727840420,-500.0,0.00023501,2]
[400569396,1767727840430,-216.99633361,0.00023522,56]
[400569398,1767727840439,-263.90236536,0.00023522,56]
[400569400,1767727840448,-2105.41764886,0.00023532,2]
[400569402,1767727840457,-156.04,0.00023533,2]
[400569404,1767727840466,-600.0,0.00023562,2]
[400569406,1767727840477,-500.0,0.00023573,2]
[400569408,1767727840489,-2200.0,0.00023575,2]
[400569409,1767727840498,-2183.31810187,0.00023587,2]
[400569411,1767727840507,-2347.07115484,0.00023595,2]
[400569413,1767727840516,-2200.0,0.00023611,2]
[400569415,1767727840526,-500.0,0.00023613,2]
[400569417,1767727840535,-500.0,0.00023639,2]
[400569419,1767727840544,-2264.10087164,0.00023642,2]
[400569421,1767727840555,-2200.0,0.0002365,2]
[400569423,1767727840564,-216.99633361,0.00023658,63]
[400569425,1767727840573,-263.90236536,0.00023658,63]
[400569427,1767727840582,-2200.0,0.00023687,2]
[400569429,1767727840591,-1683.0249248,0.00023697,2]
[400569431,1767727840600,-8577.47952728,0.00023699,2]
[400569433,1767727840609,-240.04,0.000237,7]
[400569434,1767727840618,-284.75,0.000237,7]
[400569435,1767727840627,-500.0,0.00023728,2]
[400569436,1767727840636,-2200.0,0.00023741,2]
[400569437,1767727840645,-216.99633361,0.00023793,71]
[400569438,1767727840654,-263.90236536,0.00023793,71]
[400569439,1767727840663,-710.22,0.000238,2]
[400569440,1767727840672,-2200.0,0.00023884,2]
[400569441,1767727840681,-500.0,0.00023898,2]
[400569442,1767727840690,-500.0,0.00023906,2]
[400569443,1767727840699,-188.11386458,0.00023923,2]
[400569444,1767727840708,-216.99633361,0.00023929,79]
[400569445,1767727840717,-263.90236536,0.00023929,79]
[400569446,1767727840726,-500.0,0.00023963,2]
[400569447,1767727840735,-3357.6,0.00024,7]
[400569448,1767727840744,-43901.28444321,0.00024,2]
[400569449,1767727840753,-1734.56052203,0.00024,2]
[400569450,1767727840762,-465.40086912,0.00024,2]
[400569451,1767727840771,-618.86,0.00024,14]
[400569452,1767727840781,-1041.66666667,0.00024,7]
[400569453,1767727840790,-191.004961,0.00024,2]
[400569455,1767727840799,-151.0,0.00024,2]
[400569457,1767727840808,-151.0,0.00024,2]
[400569459,1767727840817,-151.0,0.00024,2]
[400569461,1767727840826,-151.0,0.00024,2]
[400569463,1767727840836,-2000.0,0.00024,7]
[400569465,1767727840845,-151.0,0.00024,2]
[400569467,1767727840854,-151.0,0.00024,2]
[400569469,1767727840864,-2200.0,0.00024012,2]
[400569471,1767727840873,-2347.07115484,0.00024017,2]
[400569473,1767727840882,-587.58501506,0.00024024,2]
[400569475,1767727840891,-533.88981491,0.00024025,2]
[400569477,1767727840901,-2579.17784983,0.00024025,2]
[400569479,1767727840911,-216.99633361,0.00024065,86]
[400569481,1767727840922,-263.90236536,0.00024065,86]
[400569483,1767727840931,-750.0,0.0002411,2]
[400569485,1767727840940,-2200.0,0.00024116,2]
[400569487,1767727840950,-2200.0,0.00024118,2]
[400569489,1767727840959,-203.5,0.00024123,2]
[400569491,1767727840968,-511358.26965662,0.00024142,2]
[400569493,1767727840978,-151.0,0.00024142,2]
[400569495,1767727840987,-151.0,0.00024142,2]
[400569497,1767727840996,-151.0,0.00024142,2]
[400569499,1767727841006,-221.765393,0.00024142,2]
[400569501,1767727841015,-151.0,0.00024142,2]
[400569503,1767727841024,-151.0,0.00024142,2]
[400569505,1767727841035,-804.4906318,0.00024146,2]
[400569507,1767727841045,-3217.96252719,0.00024146,2]
[400569509,1767727841056,-768.88834382,0.00024146,2]
[400569512,1767727841066,-3075.55337527,0.00024146,2]
[400569514,1767727841075,-290.15067067,0.00024148,2]
[400569516,1767727841084,-314.849226,0.00024148,2]
[400569518,1767727841094,-1259.39690398,0.00024148,2]
[400569520,1767727841103,-2833.64303396,0.00024148,2]
[400569522,1767727841112,-5037.58761594,0.00024148,2]
[400569524,1767727841122,-7871.2306499,0.00024148,2]
[400569526,1767727841131,-11334.57213586,0.00024148,2]
[400569528,1767727841141,-216.99633361,0.00024201,94]
[400569530,1767727841150,-263.90236536,0.00024201,94]
[400569532,1767727841159,-2347.07115484,0.00024209,2]
[400569534,1767727841168,-482.61947305,0.00024219,2]
[400569536,1767727841178,-500.0,0.00024249,2]
[400569538,1767727841188,-2200.0,0.00024263,2]
[400569540,1767727841197,-500.0,0.00024268,2]
[400569542,1767727841206,-2200.0,0.00024281,2]
[400569544,1767727841215,-216.99633361,0.00024337,102]
[400569546,1767727841223,-263.90236536,0.00024337,102]
[400569548,1767727841233,-200.0,0.00024411,13]
[400569550,1767727841242,-2200.0,0.00024454,2]
[400569552,1767727841252,-2200.0,0.00024497,2]
[400569554,1767727841262,-500.0,0.00024505,2]
[400569556,1767727841271,-2200.0,0.00024538,2]
[400569558,1767727841280,-553.64373807,0.00024573,2]
[400569560,1767727841289,-2674.60743027,0.00024573,2]
[400569562,1767727841299,-500.0,0.00024595,2]
[400569564,1767727841307,-2827.11,0.000246,14]
[400569566,1767727841320,-24466.81,0.000246,2]
[400569568,1767727841329,-2347.07115498,0.00024616,2]
[400569570,1767727841338,-1000.0,0.00024629,30]
[400569572,1767727841347,-1000.0,0.00024629,30]
[400569574,1767727841356,-1000.0,0.00024629,30]
[400569576,1767727841365,-1000.0,0.00024629,30]
[400569578,1767727841375,-1000.0,0.00024629,30]
[400569580,1767727841384,-1000.0,0.00024629,30]
[400569582,1767727841393,-1000.0,0.00024629,30]
[400569584,1767727841403,-1000.0,0.00024629,30]
[400569586,1767727841413,-1000.0,0.00024629,30]
[400569588,1767727841422,-156710.90453851,0.0002465,2]
[400569590,1767727841431,-513.75227377,0.0002465,2]
[400569592,1767727841440,-900.0,0.00024658,2]
[400569594,1767727841450,-500.0,0.00024658,2]
[400569596,1767727841459,-475.0,0.00024683,30]
[400569598,1767727841469,-475.0,0.00024683,30]
[400569600,1767727841481,-475.0,0.00024683,30]
[400569602,1767727841491,-475.0,0.00024683,30]
[400569604,1767727841501,-475.0,0.00024683,30]
[400569606,1767727841510,-475.0,0.00024683,30]
[400569608,1767727841519,-475.0,0.00024683,30]
[400569610,1767727841528,-475.0,0.00024683,30]
[400569612,1767727841538,-475.0,0.00024683,30]
[400569614,1767727841547,-475.0,0.00024683,30]
[400569616,1767727841557,-475.0,0.00024683,30]
[400569618,1767727841566,-475.0,0.00024683,30]
[400569620,1767727841575,-475.0,0.00024683,30]
[400569622,1767727841584,-475.0,0.00024683,30]
[400569624,1767727841594,-475.0,0.00024683,30]
[400569626,1767727841603,-475.0,0.00024683,30]
[400569628,1767727841612,-475.0,0.00024683,30]
[400569630,1767727841621,-475.0,0.00024683,30]
[400569632,1767727841630,-475.0,0.00024683,30]
[400569634,1767727841639,-475.0,0.00024683,30]
[400569636,1767727841648,-475.0,0.00024683,30]
[400569638,1767727841658,-475.0,0.00024683,30]
[400569640,1767727841667,-475.0,0.00024683,30]
[400569642,1767727841676,-475.0,0.00024683,30]
[400569644,1767727841684,-475.0,0.00024683,30]
[400569646,1767727841694,-475.0,0.00024683,30]
[400569648,1767727841703,-475.0,0.00024683,30]
[400569650,1767727841711,-475.0,0.00024683,30]
[400569652,1767727841721,-475.0,0.00024683,30]
[400569654,1767727841730,-475.0,0.00024683,30]
[400569656,1767727841739,-475.0,0.00024683,30]
[400569658,1767727841748,-475.0,0.00024683,30]
[400569660,1767727841757,-475.0,0.00024683,30]
[400569662,1767727841767,-475.0,0.00024683,30]
[400569664,1767727841776,-475.0,0.00024683,30]
[400569666,1767727841785,-475.0,0.00024683,30]
[400569668,1767727841794,-475.0,0.00024683,30]
[400569670,1767727841804,-475.0,0.00024683,30]
[400569672,1767727841813,-475.0,0.00024683,30]
[400569674,1767727841822,-475.0,0.00024683,30]
[400569676,1767727841831,-475.0,0.00024683,30]
[400569679,1767727841841,-475.0,0.00024683,30]
[400569680,1767727841850,-475.0,0.00024683,30]
[400569682,1767727841859,-475.0,0.00024683,30]
[400569684,1767727841869,-475.0,0.00024683,30]
[400569686,1767727841878,-475.0,0.00024683,30]
[400569689,1767727841887,-475.0,0.00024683,30]
[400569691,1767727841896,-475.0,0.00024683,30]
[400569693,1767727841906,-475.0,0.00024683,30]
[400569695,1767727841916,-475.0,0.00024683,30]
[400569697,1767727841924,-475.0,0.00024683,30]
[400569699,1767727841934,-475.0,0.00024683,30]
[400569701,1767727841943,-500.0,0.00024687,2]
[400569703,1767727841952,-47716.48371464,0.000247,3]
[400569705,1767727841961,-500.0,0.00024716,2]
[400569707,1767727841971,-500.0,0.00024725,2]
[400569709,1767727841980,-2200.0,0.00024772,2]
[400569711,1767727841989,-16820.33315327,0.00024774,2]
[400569713,1767727841998,-475.0,0.00024774,30]
[400569715,1767727842007,-475.0,0.00024774,30]
[400569717,1767727842016,-475.0,0.00024774,30]
[400569719,1767727842025,-475.0,0.00024774,30]
[400569721,1767727842034,-475.0,0.00024774,30]
[400569723,1767727842043,-475.0,0.00024774,30]
[400569725,1767727842052,-475.0,0.00024774,30]
[400569727,1767727842061,-475.0,0.00024774,30]
[400569729,1767727842070,-475.0,0.00024774,30]
[400569731,1767727842080,-475.0,0.00024774,30]
[400569733,1767727842089,-2000.0,0.00024774,30]
[400569735,1767727842098,-2000.0,0.00024774,30]
[400569737,1767727842107,-2000.0,0.00024774,30]
[400569739,1767727842116,-188.515,0.00024774,30]
[400569740,1767727842125,-2200.0,0.0002478,2]
[400569742,1767727842134,-475.0,0.0002479,30]
[400569744,1767727842145,-500.0,0.00024795,2]
[400569746,1767727842154,-1564.1243201,0.00024818,2]
[400569749,1767727842163,-500.0,0.0002483,2]
[400569752,1767727842172,-161.9011013,0.00024846,2]
[400569755,1767727842181,-500.0,0.00024864,2]
[400569758,1767727842190,-151.0,0.000249,7]
[400569761,1767727842200,-182.954816,0.000249,7]
[400569764,1767727842210,-153.789809,0.000249,7]
[400569766,1767727842219,-152.0,0.000249,3]
[400569768,1767727842229,-152.0,0.000249,3]
[400569771,1767727842238,-152.0,0.000249,3]
[400569774,1767727842247,-152.0,0.000249,3]
[400569776,1767727842256,-152.0,0.000249,3]
[400569778,1767727842265,-152.0,0.000249,3]
[400569780,1767727842274,-152.0,0.000249,3]
[400569782,1767727842284,-152.0,0.000249,3]
[400569784,1767727842293,-284.0,0.000249,3]
[400569786,1767727842302,-151.0,0.000249,7]
[400569787,1767727842311,-151.0,0.000249,7]
[400569789,1767727842320,-151.0,0.000249,7]
[400569792,1767727842333,-151.0,0.000249,7]
[400569794,1767727842342,-151.0,0.000249,7]
[400569796,1767727842351,-151.0,0.000249,7]
[400569798,1767727842361,-151.0,0.000249,7]
[400569800,1767727842370,-409.150764,0.000249,7]
[400569802,1767727842379,-409.150764,0.000249,7]
[400569804,1767727842389,-409.150764,0.000249,7]
[400569806,1767727842398,-409.150764,0.000249,7]
[400569808,1767727842409,-181.138598,0.000249,7]
[400569810,1767727842419,-251.46189,0.000249,7]
[400569812,1767727842428,-151.0,0.000249,7]
[400569814,1767727842437,-501.631256,0.000249,7]
[400569816,1767727842446,-151.0,0.000249,7]
[400569818,1767727842456,-501.631256,0.000249,7]
[400569820,1767727842465,-501.631256,0.000249,7]
[400569822,1767727842474,-501.631256,0.000249,7]
[400569824,1767727842488,-151.0,0.000249,7]
[400569826,1767727842497,-151.0,0.000249,7]
[400569828,1767727842506,-1000.0,0.000249,2]
[400569830,1767727842516,-1000.0,0.000249,2]
[400569832,1767727842526,-1000.0,0.000249,2]
[400569834,1767727842535,-1000.0,0.000249,2]
[400569836,1767727842544,-1000.0,0.000249,2]
[400569838,1767727842556,-1000.0,0.000249,2]
[400569840,1767727842565,-1000.0,0.000249,2]
[400569842,1767727842575,-151.0,0.000249,7]
[400569857,1767727842701,-1000.0,0.000249,2]
[400569859,1767727842711,-1000.0,0.000249,2]
[400569861,1767727842721,-1000.0,0.000249,2]
[400569863,1767727842730,-151.0,0.000249,7]
[400569865,1767727842739,-1000.0,0.000249,2]
[400569867,1767727842748,-151.0,0.000249,7]
[400569869,1767727842758,-1000.0,0.000249,2]
[400569871,1767727842767,-1000.0,0.000249,2]
[400569873,1767727842777,-1000.0,0.000249,2]
[400569875,1767727842786,-1000.0,0.000249,2]
[400569877,1767727842795,-1000.0,0.000249,2]
[400569879,1767727842805,-1000.0,0.000249,2]
[400569881,1767727842815,-574.71139925,0.000249,2]
[400569883,1767727842824,-258.099142,0.000249,7]
[400569885,1767727842834,-258.099142,0.000249,7]
[400569887,1767727842843,-258.099142,0.000249,7]
[400569889,1767727842852,-258.099142,0.000249,7]
[400569891,1767727842861,-151.0,0.000249,7]
[400569893,1767727842871,-318.562086,0.000249,7]
[400569895,1767727842880,-318.562086,0.000249,7]
[400569898,1767727842889,-151.0,0.000249,7]
[400569899,1767727842899,-318.562086,0.000249,7]
[400569901,1767727842908,-151.0,0.000249,7]
[400569903,1767727842917,-318.562086,0.000249,7]
[400569905,1767727842925,-151.0,0.000249,7]
[400569907,1767727842934,-151.0,0.000249,7]
[400569909,1767727842943,-151.0,0.000249,7]
[400569911,1767727842953,-151.0,0.000249,7]
[400569913,1767727842962,-151.0,0.000249,7]
[400569916,1767727842974,-151.0,0.000249,7]
[400569918,1767727842983,-170.976512,0.000249,7]
[400569920,1767727842992,-178.486087,0.000249,7]
[400569922,1767727843001,-178.486087,0.000249,7]
[400569924,1767727843011,-178.486087,0.000249,7]
[400569925,1767727843020,-178.486087,0.000249,7]
[400569927,1767727843028,-151.0,0.000249,7]
[400569929,1767727843038,-166.442051,0.000249,7]
[400569931,1767727843047,-166.442051,0.000249,7]
[400569933,1767727843057,-166.442051,0.000249,7]
[400569936,1767727843067,-166.442051,0.000249,7]
[400569938,1767727843077,-151.0,0.000249,7]
[400569940,1767727843086,-151.0,0.000249,7]
[400569942,1767727843095,-151.0,0.000249,7]
[400569944,1767727843104,-620216.140987,0.000249,2]
[400569946,1767727843114,-158.624878,0.000249,7]
[400569948,1767727843124,-151.0,0.000249,7]
[400569950,1767727843133,-151.0,0.000249,7]
[400569952,1767727843142,-1000.0,0.000249,2]
[400569954,1767727843151,-1000.0,0.000249,2]
[400569956,1767727843160,-1000.0,0.000249,2]
[400569958,1767727843170,-278.91034954,0.000249,2]
[400569960,1767727843179,-151.0,0.000249,7]
[400569962,1767727843187,-167.90581026,0.000249,2]
[400569964,1767727843197,-151.0,0.000249,7]
[400569966,1767727843207,-151.0,0.000249,2]
[400569968,1767727843216,-151.0,0.000249,2]
[400569970,1767727843226,-151.0,0.000249,2]
[400569972,1767727843235,-151.0,0.000249,7]
[400569974,1767727843244,-151.0,0.000249,2]
[400569976,1767727843254,-151.0,0.000249,2]
[400569978,1767727843263,-151.0,0.000249,2]
[400569980,1767727843272,-151.0,0.000249,2]
[400569982,1767727843281,-151.0,0.000249,2]
[400569984,1767727843290,-151.0,0.000249,2]
[400569986,1767727843300,-2200.0,0.00024916,2]
[400569988,1767727843310,-1061.0,0.00024917,7]
[400569990,1767727843319,-500.0,0.00024924,2]
[400569992,1767727843328,-500.0,0.00024932,2]
[400569994,1767727843338,-2200.0,0.0002495,2]
[400569996,1767727843347,-1060.0,0.0002495,2]
[400569998,1767727843356,-475.0,0.00024971,30]
[400570000,1767727843366,-475.0,0.00024971,30]
[400570002,1767727843377,-475.0,0.00024971,30]
[400570004,1767727843385,-2200.0,0.00024971,2]
[400570006,1767727843394,-995.3526357,0.00024974,2]
[400570008,1767727843403,-475.0,0.00025,30]
[400570010,1767727843413,-111528.65958939,0.00025,15]
[400570012,1767727843422,-1084.88588646,0.00025,2]
[400570014,1767727843431,-11299.51643052,0.00025,2]
[400570016,1767727843440,-2673.15322453,0.00025,2]
[400570018,1767727843450,-27267.5635244,0.00025,2]
[400570020,1767727843458,-10364.0,0.00025,2]
[400570022,1767727843469,-500.0,0.00025,2]
[400570024,1767727843480,-300.0,0.00025,30]
[400570026,1767727843489,-1188.6506679,0.00025,2]
[400570028,1767727843499,-758.94232624,0.00025,2]
[400570030,1767727843507,-1020.73276343,0.00025,2]
[400570032,1767727843518,-1041.66666667,0.00025,3]
[400570034,1767727843529,-2000.0,0.00025,7]
[400570036,1767727843538,-1041.66666667,0.00025,30]
[400570038,1767727843548,-168.0,0.00025002,2]
[400570040,1767727843558,-2200.0,0.00025005,7]
[400570042,1767727843567,-2200.0,0.00025034,7]
[400570044,1767727843577,-500.0,0.00025069,2]
[400570045,1767727843586,-500.0,0.00025097,7]
[400570047,1767727843595,-240.04,0.000251,7]
[400570049,1767727843604,-284.75,0.000251,7]
[400570051,1767727843613,-710.22,0.000251,2]
[400570053,1767727843623,-574.12855637,0.00025121,2]
[400570055,1767727843632,-2773.56790519,0.00025121,2]
[400570057,1767727843643,-2200.0,0.00025127,7]
[400570059,1767727843652,-4364.20106546,0.00025136,7]
[400570060,1767727843663,-579.7994531,0.000252,5]
[400570061,1767727843672,-250.0,0.00025205,2]
[400570062,1767727843681,-880.39814706,0.00025205,2]
[400570063,1767727843690,-500.0,0.00025206,2]
[400570064,1767727843699,-1000.0,0.00025245,10]
[400570065,1767727843708,-791.0,0.00025245,10]
[400570066,1767727843717,-168.0,0.00025268,2]
[400570067,1767727843726,-168.0,0.00025293,2]
[400570068,1767727843735,-500.0,0.00025343,2]
[400570069,1767727843744,-1061.0,0.00025388,2]
[400570070,1767727843753,-1060.0,0.00025417,2]
[400570071,1767727843762,-900.0,0.00025469,3]
[400570072,1767727843778,-500.0,0.0002548,2]
[400570073,1767727843792,-1000.0,0.000255,2]
[400570074,1767727843806,-168.0,0.00025507,2]
[400570075,1767727843818,-168.0,0.00025541,2]
[400570076,1767727843828,-500.0,0.00025617,2]
[400570077,1767727843842,-1060.0,0.00025648,2]
[400570079,1767727843855,-595.37131296,0.00025669,2]
[400570081,1767727843868,-2876.18991768,0.00025669,2]
[400570083,1767727843881,-168.0,0.0002573,2]
[400570086,1767727843893,-168.0,0.00025752,2]
[400570088,1767727843906,-350.0,0.00025753,2]
[400570091,1767727843920,-500.0,0.00025754,2]
[400570093,1767727843933,-1041.66666667,0.000258,3]
[400570096,1767727843947,-203.5,0.0002582,2]
[400570098,1767727843960,-2827.11,0.00026,14]
[400570100,1767727843972,-24466.81,0.00026,2]
[400570103,1767727843983,-1041.66666667,0.00026,7]
[400570105,1767727843997,-39765.87356579,0.00026,10]
[400570107,1767727844009,-1041.66666667,0.00026,10]
[400570110,1767727844021,-529.55716524,0.00026,2]
[400570112,1767727844032,-18040.09749438,0.00026,30]
[400570114,1767727844042,-19900.0,0.00026,2]
[400570116,1767727844054,-161.0,0.00026,5]
[400570118,1767727844066,-1019.0,0.00026,2]
[400570120,1767727844078,-2000.0,0.00026,7]
[400570123,1767727844090,-194.54818009,0.0002616,2]
[400570125,1767727844103,-617.40005154,0.00026217,2]
[400570127,1767727844116,-2982.60894464,0.00026217,2]
[400570130,1767727844129,-524.38461976,0.00026219,2]
[400570132,1767727844142,-168.0,0.00026288,2]
[400570134,1767727844155,-450.0,0.00026301,2]
[400570137,1767727844165,-1060.0,0.00026353,2]
[400570139,1767727844175,-3357.6,0.000264,7]
[400570141,1767727844186,-168.0,0.00026434,2]
[400570143,1767727844199,-200.0,0.0002654,14]
[400570145,1767727844213,-1060.0,0.00026558,7]
[400570149,1767727844225,-1060.0,0.00026581,2]
[400570151,1767727844237,-163.0,0.00026603,21]
[400570153,1767727844247,-15905.49,0.000267,3]
[400570155,1767727844259,-640.24385345,0.00026765,2]
[400570157,1767727844271,-3092.96547559,0.00026765,2]
[400570160,1767727844284,-53813.93792126,0.00026778,14]
[400570162,1767727844295,-710.22,0.000268,2]
[400570164,1767727844305,-550.0,0.00026849,2]
[400570166,1767727844316,-1060.0,0.00026878,2]
[400570168,1767727844327,-1060.0,0.00026896,2]
[400570170,1767727844339,-240.04,0.000269,7]
[400570172,1767727844351,-284.75,0.000269,7]
[400570175,1767727844363,-1060.0,0.000269,2]
[400570177,1767727844374,-1061.0,0.00026935,2]
[400570179,1767727844385,-150.275,0.00026939,2]
[400570181,1767727844396,-150.994,0.00026939,2]
[400570183,1767727844407,-168.0,0.00026951,2]
[400570186,1767727844418,-2000.0,0.00026974,7]
[400570188,1767727844429,-2000.0,0.00026982,7]
[400570190,1767727844440,-2000.0,0.00026991,7]
[400570192,1767727844451,-2000.0,0.00027,7]
[400570194,1767727844462,-2000.0,0.00027,7]
[400570196,1767727844473,-184.0,0.00027,7]
[400570198,1767727844488,-166.0,0.00027,7]
[400570200,1767727844499,-600.0,0.00027,14]
[400570202,1767727844510,-503.72461752,0.00027,2]
[400570205,1767727844523,-302781.61424461,0.00027,7]
[400570207,1767727844533,-1019.0,0.00027,2]
[400570209,1767727844546,-564.0,0.00027,7]
[400570211,1767727844558,-151.0,0.00027,7]
[400570214,1767727844569,-222.545523,0.00027,7]
[400570216,1767727844582,-151.0,0.00027,7]
[400570218,1767727844593,-2000.0,0.00027,7]
[400570220,1767727844604,-177.372841,0.00027,7]
[400570222,1767727844615,-1060.0,0.00027009,2]
[400570225,1767727844627,-168.0,0.00027058,2]
[400570227,1767727844638,-8577.47952728,0.000271,2]
[400570229,1767727844649,-168.0,0.00027179,2]
[400570231,1767727844660,-663.93287602,0.00027313,2]
[400570233,1767727844672,-3207.40519818,0.00027313,2]
[400570235,1767727844683,-223.81332617,0.00027397,2]
[400570237,1767727844695,-156.66932831,0.00027397,2]
[400570240,1767727844706,-1825.86,0.00027397,2]
[400570242,1767727844717,-650.0,0.00027397,5]
[400570244,1767727844728,-500.0,0.00027397,5]
[400570246,1767727844739,-514.72943371,0.00027397,5]
[400570248,1767727844751,-45930.20768051,0.000275,2]
[400570250,1767727844763,-11034.61992398,0.00027501,2]
[400570253,1767727844774,-203.5,0.00027516,2]